lending/lending_fUSD_20250719
["ID","MTS","AMOUNT","RATE_DAILY","PERIOD"]
[373282853,1752927107271,-2548358.89831819,0.0002268,2]
[373282854,1752927107281,-151.0,0.0002268,7]
[373282855,1752927107290,-151.591742,0.0002268,7]
[373282856,1752927107299,-151.0,0.0002268,7]
[373282857,1752927107308,-151.0,0.0002268,7]
[373282858,1752927107318,-151.0,0.0002268,7]
[373282859,1752927107327,-151.0,0.0002268,7]
[373282860,1752927107336,-180.880255,0.0002268,7]
[373282861,1752927107346,-217.214018,0.0002268,7]
[373282862,1752927107355,-217.214018,0.0002268,7]
[373282863,1752927107364,-194.538332,0.0002268,7]
[373282864,1752927107374,-151.0,0.0002268,7]
[373282865,1752927107383,-151.0,0.0002268,7]
[373282866,1752927107393,-151.0,0.0002268,7]
[373282867,1752927107402,-159.485168,0.0002268,7]
[373282868,1752927107411,-159.485168,0.0002268,7]
[373282869,1752927107420,-600.0,0.00022693,2]
[373282870,1752927107430,-150.0,0.0002271,2]
[373282871,1752927107439,-167.15,0.00022721,2]
[373282872,1752927107448,-1299.0,0.00022722,2]
[373282873,1752927107458,-500.0,0.0002274,2]
[373282874,1752927107468,-3635.0,0.0002274,2]
[373282875,1752927107477,-1089.0,0.0002274,2]
[373282876,1752927107486,-444.0,0.0002274,2]
[373282877,1752927107495,-500.0,0.0002274,2]
[373282878,1752927107504,-500.0,0.0002274,2]
[373282879,1752927107514,-500.0,0.0002274,2]
[373282880,1752927107523,-150.0,0.0002274,2]
[373282881,1752927107532,-150.0,0.00022744,2]
[373282882,1752927107541,-150.0,0.00022747,2]
[373282883,1752927107550,-185.13810453,0.0002275,2]
[373282884,1752927107559,-150.0,0.00022768,2]
[373282885,1752927107569,-150.0,0.00022773,2]
[373282886,1752927107578,-1299.0,0.00022785,2]
[373282887,1752927107590,-643.49157141,0.00022798,2]
[373282888,1752927107600,-150.0,0.00022809,2]
[373282889,1752927107609,-1299.0,0.00022815,2]
[373282890,1752927107618,-150.0,0.00022828,2]
[373282891,1752927107627,-1299.0,0.00022833,2]
[373282892,1752927107637,-150.0,0.00022853,2]
[373282893,1752927107646,-150.0,0.00022853,2]
[373282894,1752927107656,-150.0,0.00022854,2]
[373282895,1752927107666,-150.0,0.00022863,2]
[373282896,1752927107675,-150.0,0.00022871,2]
[373282897,1752927107685,-150.0,0.00022877,2]
[373282898,1752927107695,-150.0,0.00022882,2]
[373282899,1752927107704,-1299.0,0.00022887,2]
[373282900,1752927107713,-150.0,0.00022906,2]
[373282901,1752927107722,-150.0,0.00022922,2]
[373282902,1752927107732,-150.0,0.00022924,2]
[373282903,1752927107741,-150.0,0.00022926,2]
[373282904,1752927107751,-150.0,0.00022932,2]
[373282905,1752927107760,-150.0,0.00022947,2]
[373282906,1752927107769,-150.0,0.00022957,2]
[373282907,1752927107778,-150.0,0.00022958,2]
[373282908,1752927107788,-156.39173529,0.00022966,2]
[373282909,1752927107797,-150.0,0.0002299,2]
[373282910,1752927107807,-150.0,0.00022997,2]
[373282911,1752927107816,-150.0,0.00022997,2]
[373282912,1752927107825,-2854.71,0.00023,2]
[373282913,1752927107835,-1000.0,0.00023,2]
[373282914,1752927107843,-239893.97,0.00023,7]
[373282915,1752927107852,-210.6,0.00023,2]
[373282916,1752927107861,-153.0,0.00023,2]
[373282917,1752927107871,-270.99715995,0.00023,2]
[373282918,1752927107880,-1210.0,0.00023,2]
[373282919,1752927107890,-900.0,0.00023,8]
[373282920,1752927107899,-900.0,0.00023,8]
[373282921,1752927107909,-900.0,0.00023,8]
[373282922,1752927107918,-900.0,0.00023,8]
[373282923,1752927107927,-900.0,0.00023,8]
[373282924,1752927107937,-900.0,0.00023,8]
[373282925,1752927107947,-900.0,0.00023,8]
[373282926,1752927107956,-900.0,0.00023,8]
[373282927,1752927107965,-900.0,0.00023,8]
[373282928,1752927107974,-900.0,0.00023,8]
[373282929,1752927107984,-494.0,0.00023,7]
[373282930,1752927107994,-204.233866,0.00023,2]
[373282931,1752927108003,-200.0,0.00023,2]
[373282932,1752927108012,-350.0,0.00023014,2]
[373282933,1752927108022,-500.0,0.00023014,2]
[373282934,1752927108032,-3635.0,0.00023014,2]
[373282935,1752927108041,-1089.0,0.00023014,2]
[373282936,1752927108051,-444.0,0.00023014,2]
[373282937,1752927108060,-500.0,0.00023014,2]
[373282938,1752927108070,-500.0,0.00023014,2]
[373282939,1752927108079,-386.65821096,0.00023014,2]
[373282940,1752927108089,-1299.0,0.00023029,2]
[373282941,1752927108099,-152.0,0.00023068,5]
[373282942,1752927108108,-1299.0,0.00023081,2]
[373282943,1752927108117,-390.0,0.00023089,2]
[373282944,1752927108127,-1299.0,0.00023097,2]
[373282945,1752927108137,-3292.0,0.00023125,2]
[373282946,1752927108147,-390.0,0.00023128,2]
[373282947,1752927108156,-1299.0,0.00023137,2]
[373282948,1752927108166,-390.0,0.00023153,2]
[373282949,1752927108175,-306.47943934,0.00023165,2]
[373282950,1752927108185,-1299.0,0.00023181,2]
[373282951,1752927108195,-773.0,0.000232,2]
[373282952,1752927108204,-239.0,0.000232,2]
[373282953,1752927108213,-378.0,0.000232,2]
[373282954,1752927108223,-479.10385899,0.00023212,2]
[373282955,1752927108234,-164.75,0.00023225,2]
[373282956,1752927108243,-223.0315306,0.00023239,2]
[373282957,1752927108252,-160.0,0.00023239,2]
[373282958,1752927108262,-373.07297731,0.00023239,2]
[373282959,1752927108272,-600.0,0.00023241,2]
[373282960,1752927108281,-528.58075775,0.00023249,2]
[373282961,1752927108291,-250.0,0.00023253,2]
[373282962,1752927108301,-1299.0,0.00023266,2]
[373282963,1752927108311,-62059.38303774,0.00023268,7]
[373282964,1752927108320,-1153.64038505,0.00023268,7]
[373282965,1752927108329,-151.0,0.00023268,7]
[373282966,1752927108339,-151.0,0.00023268,7]
[373282967,1752927108349,-151.0,0.00023268,7]
[373282968,1752927108359,-217.214018,0.00023268,7]
[373282969,1752927108369,-217.214018,0.00023268,7]
[373282970,1752927108379,-151.0,0.00023268,7]
[373282971,1752927108389,-184.882944,0.00023268,7]
[373282972,1752927108399,-151.0,0.00023268,7]
[373282973,1752927108409,-159.485168,0.00023268,7]
[373282974,1752927108418,-159.485171,0.00023268,7]
[373282975,1752927108428,-1299.0,0.0002327,2]
[373282976,1752927108438,-494.0,0.00023288,7]
[373282977,1752927108448,-500.0,0.00023288,2]
[373282978,1752927108458,-3635.0,0.00023288,2]
[373282979,1752927108467,-1089.0,0.00023288,2]
[373282980,1752927108476,-1304.0,0.00023288,2]
[373282981,1752927108486,-444.0,0.00023288,2]
[373282982,1752927108498,-500.0,0.00023288,2]
[373282983,1752927108507,-500.0,0.00023288,2]
[373282984,1752927108517,-1299.0,0.00023293,2]
[373282985,1752927108526,-5463.33,0.000233,7]
[373282986,1752927108536,-500.0,0.00023336,2]
[373282987,1752927108545,-390.0,0.00023337,2]
[373282988,1752927108554,-900.0,0.00023356,2]
[373282989,1752927108564,-1000.0,0.00023356,2]
[373282990,1752927108573,-500.0,0.00023356,2]
[373282991,1752927108583,-1268.0,0.00023471,2]
[373282992,1752927108597,-807.0,0.00023471,2]
[373282993,1752927108607,-1686.0,0.00023471,2]
[373282994,1752927108616,-1287.0,0.00023471,2]
[373282995,1752927108627,-595.0,0.00023471,2]
[373282996,1752927108637,-562.0,0.00023471,2]
[373282997,1752927108647,-152.0,0.00023502,6]
[373282998,1752927108657,-268.09896779,0.00023562,2]
[373282999,1752927108667,-500.0,0.00023562,2]
[373283000,1752927108677,-3635.0,0.00023562,2]
[373283001,1752927108686,-1089.0,0.00023562,2]
[373283002,1752927108696,-444.0,0.00023562,2]
[373283003,1752927108706,-500.0,0.00023562,2]
[373283004,1752927108716,-500.0,0.00023562,2]
[373283005,1752927108725,-390.0,0.00023579,2]
[373283006,1752927108735,-2098.52403,0.0002361,2]
[373283007,1752927108747,-205.86,0.00023623,2]
[373283008,1752927108758,-3914.44,0.000237,2]
[373283009,1752927108767,-1122.697,0.00023711,2]
[373283010,1752927108777,-1997.904,0.00023711,2]
[373283011,1752927108788,-200.0,0.00023758,2]
[373283012,1752927108798,-390.0,0.00023763,2]
[373283013,1752927108808,-150.0,0.00023789,2]
[373283014,1752927108819,-600.0,0.00023789,2]
[373283015,1752927108828,-151.0,0.00023836,7]
[373283016,1752927108838,-151.0,0.00023836,7]
[373283017,1752927108848,-151.0,0.00023836,7]
[373283018,1752927108858,-151.0,0.00023836,7]
[373283019,1752927108868,-151.0,0.00023836,7]
[373283020,1752927108878,-252.779708,0.00023836,7]
[373283021,1752927108887,-789.8,0.00023836,2]
[373283022,1752927108898,-500.0,0.00023836,2]
[373283023,1752927108908,-3635.0,0.00023836,2]
[373283024,1752927108918,-1089.0,0.00023836,2]
[373283025,1752927108927,-444.0,0.00023836,2]
[373283026,1752927108938,-500.0,0.00023836,2]
[373283027,1752927108949,-500.0,0.00023836,2]
[373283028,1752927108958,-390.0,0.00023839,2]
[373283029,1752927108968,-236.0,0.0002388,2]
[373283030,1752927108978,-3914.44,0.000239,2]
[373283031,1752927108988,-156.39173529,0.00023933,2]
[373283032,1752927108999,-152.0,0.00023935,7]
[373283033,1752927109010,-1000.0,0.00023946,2]
[373283034,1752927109020,-306.47943934,0.00023983,2]
[373283035,1752927109029,-239893.97,0.00024,7]
[373283036,1752927109039,-160.0,0.00024,7]
[373283037,1752927109050,-839.16344753,0.00024,7]
[373283038,1752927109060,-4000.0,0.00024,4]
[373283039,1752927109069,-3000.0,0.00024,5]
[373283040,1752927109080,-715.65,0.00024006,2]
[373283041,1752927109090,-150.0,0.00024007,2]
[373283042,1752927109100,-150.0,0.00024007,2]
[373283043,1752927109110,-10000.0,0.000241,2]
[373283044,1752927109120,-200.0,0.000241,7]
[373283045,1752927109130,-500.0,0.0002411,2]
[373283046,1752927109140,-3635.0,0.0002411,2]
[373283047,1752927109150,-1089.0,0.0002411,2]
[373283048,1752927109160,-444.0,0.0002411,2]
[373283049,1752927109170,-500.0,0.0002411,2]
[373283050,1752927109180,-500.0,0.0002411,2]
[373283051,1752927109190,-166.4,0.00024113,2]
[373283052,1752927109200,-150.0,0.00024151,2]
[373283053,1752927109210,-494.0,0.00024164,7]
[373283054,1752927109220,-150.0,0.00024213,2]
[373283055,1752927109229,-150.0,0.00024215,2]
[373283056,1752927109239,-479.10385899,0.00024245,2]
[373283057,1752927109250,-150.0,0.00024261,2]
[373283058,1752927109260,-5463.33,0.000243,7]
[373283059,1752927109270,-600.0,0.00024337,2]
[373283060,1752927109279,-150.0,0.00024354,2]
[373283061,1752927109289,-152.0,0.00024368,8]
[373283062,1752927109299,-500.0,0.00024384,2]
[373283063,1752927109309,-3635.0,0.00024384,2]
[373283064,1752927109319,-1089.0,0.00024384,2]
[373283065,1752927109329,-444.0,0.00024384,2]
[373283066,1752927109340,-500.0,0.00024384,2]
[373283067,1752927109350,-500.0,0.00024384,2]
[373283068,1752927109360,-2008.0,0.00024388,2]
[373283069,1752927109370,-150.0,0.00024431,2]
[373283070,1752927109380,-900.0,0.00024452,2]
[373283071,1752927109389,-1000.0,0.00024452,2]
[373283072,1752927109399,-500.0,0.00024452,2]
[373283073,1752927109409,-2110.0,0.000245,2]
[373283074,1752927109419,-528.58075775,0.00024566,2]
[373283075,1752927109429,-150.0,0.00024598,2]
[373283076,1752927109439,-150.0,0.00024599,2]
[373283077,1752927109449,-231.28369723,0.00024608,2]
[373283078,1752927109459,-160.0,0.00024608,2]
[373283079,1752927109470,-386.87667747,0.00024608,2]
[373283080,1752927109479,-2098.52402,0.0002461,2]
[373283081,1752927109489,-2008.0,0.0002464,2]
[373283082,1752927109501,-217.214018,0.0002464,7]
[373283083,1752927109510,-217.214021,0.0002464,7]
[373283084,1752927109520,-151.0,0.00024657,7]
[373283085,1752927109531,-151.0,0.00024657,7]
[373283086,1752927109541,-150.34416944,0.00024658,2]
[373283087,1752927109550,-1000.0,0.00024658,2]
[373283088,1752927109560,-500.0,0.00024658,2]
[373283089,1752927109571,-3635.0,0.00024658,2]
[373283090,1752927109580,-1089.0,0.00024658,2]
[373283091,1752927109593,-1304.0,0.00024658,2]
[373283092,1752927109603,-444.0,0.00024658,2]
[373283093,1752927109615,-500.0,0.00024658,2]
[373283094,1752927109624,-643.49157141,0.00024659,5]
[373283095,1752927109635,-5888.0,0.00024673,2]
[373283096,1752927109644,-151.0,0.00024673,7]
[373283097,1752927109654,-151.0,0.00024673,7]
[373283098,1752927109664,-155.75038,0.00024673,7]
[373283099,1752927109675,-2000.0,0.000247,2]
[373283100,1752927109685,-1754.1,0.00024749,2]
[373283101,1752927109696,-666.0,0.00024799,2]
[373283102,1752927109706,-666.0,0.00024799,2]
[373283103,1752927109717,-12304.01437969,0.000248,2]
[373283104,1752927109726,-185.32094446,0.000248,2]
[373283105,1752927109737,-256675.27560989,0.000248,2]
[373283106,1752927109747,-151.0,0.000248,7]
[373283107,1752927109756,-151.0,0.000248,7]
[373283108,1752927109766,-151.0,0.000248,7]
[373283109,1752927109776,-607107.271759,0.000248,2]
[373283110,1752927109786,-306.47943934,0.000248,2]
[373283111,1752927109796,-152.0,0.00024801,9]
[373283112,1752927109806,-3353.0,0.00024806,2]
[373283113,1752927109816,-150.0,0.00024834,2]
[373283114,1752927109826,-3353.0,0.00024843,7]
[373283115,1752927109836,-250.0,0.0002487,2]
[373283116,1752927109846,-2000.0,0.00024875,2]
[373283117,1752927109856,-2000.0,0.00024875,2]
[373283118,1752927109866,-1024.289,0.00024875,2]
[373283119,1752927109876,-2000.0,0.00024875,2]
[373283120,1752927109886,-600.0,0.00024885,2]
[373283121,1752927109896,-2008.0,0.00024891,2]
[373283122,1752927109906,-143837.7915029,0.00024896,2]
[373283123,1752927109916,-1784.0063727,0.00024896,2]
[373283124,1752927109928,-300.0,0.00024899,10]
[373283125,1752927109937,-151.0,0.000249,7]
[373283126,1752927109947,-328.82,0.000249,31]
[373283127,1752927109957,-328.82,0.000249,31]
[373283128,1752927109967,-328.82,0.000249,31]
[373283129,1752927109976,-328.82,0.000249,31]
[373283130,1752927109986,-328.82,0.000249,31]
[373283131,1752927109998,-328.82,0.000249,31]
[373283132,1752927110009,-328.82,0.000249,31]
[373283133,1752927110019,-328.82,0.000249,31]
[373283134,1752927110029,-328.82,0.000249,31]
[373283135,1752927110038,-328.82,0.000249,31]
[373283136,1752927110049,-328.82,0.000249,31]
[373283137,1752927110059,-328.82,0.000249,31]
[373283138,1752927110069,-328.82,0.000249,31]
[373283139,1752927110079,-328.82,0.000249,31]
[373283140,1752927110088,-328.82,0.000249,31]
[373283141,1752927110098,-328.82,0.000249,31]
[373283142,1752927110109,-623909.594745,0.000249,2]
[373283143,1752927110121,-156.39173529,0.000249,2]
[373283144,1752927110131,-300.0,0.00024913,10]
[373283145,1752927110141,-150.0,0.00024931,2]
[373283146,1752927110152,-496.0,0.00024932,7]
[373283147,1752927110162,-188.27196687,0.00024932,2]
[373283148,1752927110172,-3635.0,0.00024932,2]
[373283149,1752927110182,-1089.0,0.00024932,2]
[373283150,1752927110192,-444.0,0.00024932,2]
[373283151,1752927110203,-500.0,0.00024932,2]
[373283152,1752927110212,-150.0,0.00024935,2]
[373283153,1752927110222,-300.0,0.0002497,2]
[373283154,1752927110233,-250.0,0.0002497,2]
[373283155,1752927110244,-250.0,0.0002497,2]
[373283156,1752927110253,-3345.26,0.00024995,6]
[373283157,1752927110263,-300.0,0.00024999,10]
[373283158,1752927110273,-300.0,0.00024999,10]
[373283159,1752927110283,-300.0,0.00024999,10]
[373283160,1752927110293,-150.0,0.00024999,2]
[373283161,1752927110304,-1000.0,0.00024999,2]
[373283162,1752927110314,-317586.7415535,0.00025,2]
[373283163,1752927110324,-25682.69599252,0.00025,14]
[373283164,1752927110334,-3000.0,0.00025,2]
[373283165,1752927110343,-1554.33903473,0.00025,60]
[373283166,1752927110354,-1000.0,0.00025,7]
[373283167,1752927110363,-898.50609133,0.00025,2]
[373283168,1752927110374,-1191.55281851,0.00025,30]
[373283169,1752927110384,-5012.27,0.00025,10]
[373283170,1752927110394,-2852.95301549,0.00025,2]
[373283171,1752927110405,-200.0,0.00025,7]
[373283172,1752927110416,-4538.43594657,0.00025,2]
[373283173,1752927110426,-334.78952639,0.00025,60]
[373283174,1752927110437,-580.83,0.00025,7]
[373283175,1752927110447,-21788.07683414,0.00025,14]
[373283176,1752927110457,-160.0,0.00025,7]
[373283177,1752927110467,-160.19818221,0.00025,3]
[373283178,1752927110476,-200.0,0.00025,7]
[373283179,1752927110486,-150.0,0.00025,2]
[373283180,1752927110497,-150.0,0.00025,2]
[373283181,1752927110508,-150.0,0.00025,2]
[373283182,1752927110518,-150.0,0.00025,2]
[373283183,1752927110527,-150.0,0.00025,2]
[373283184,1752927110537,-150.0,0.00025,2]
[373283185,1752927110547,-150.0,0.00025,2]
[373283186,1752927110556,-150.0,0.00025,2]
[373283187,1752927110566,-150.0,0.00025,2]
[373283188,1752927110575,-150.0,0.00025,2]
[373283189,1752927110586,-150.0,0.00025,2]
[373283190,1752927110599,-150.0,0.00025,2]
[373283191,1752927110610,-231.433,0.00025,2]
[373283192,1752927110620,-942.99914451,0.00025,2]
[373283193,1752927110631,-2803.01,0.00025,7]
[373283194,1752927110641,-10000.0,0.00025,2]
[373283195,1752927110651,-261.27,0.00025,7]
[373283196,1752927110663,-2480.44,0.00025,7]
[373283197,1752927110673,-192.77,0.00025,7]
[373283198,1752927110683,-1008.5,0.00025,2]
[373283199,1752927110693,-34335.35,0.00025,7]
[373283200,1752927110703,-198.0,0.00025,15]
[373283201,1752927110713,-207.0,0.00025,2]
[373283202,1752927110723,-208.0,0.00025,2]
[373283203,1752927110733,-212.0,0.00025,2]
[373283204,1752927110744,-207.0,0.00025,2]
[373283205,1752927110755,-17242.83146497,0.00025,2]
[373283206,1752927110765,-204.0,0.00025,2]
[373283207,1752927110780,-212.0,0.00025,2]
[373283208,1752927110790,-208.0,0.00025,2]
[373283209,1752927110800,-500.0,0.00025,10]
[373283210,1752927110810,-203.0,0.00025,2]
[373283211,1752927110820,-207.0,0.00025,2]
[373283212,1752927110829,-203.0,0.00025,2]
[373283213,1752927110839,-203.0,0.00025,2]
[373283214,1752927110849,-203.0,0.00025,2]
[373283215,1752927110859,-203.0,0.00025,2]
[373283216,1752927110869,-228.0,0.00025,2]
[373283217,1752927110879,-150.0,0.00025,2]
[373283218,1752927110896,-2101.40130307,0.00025,2]
[373283219,1752927110908,-234.0,0.00025,2]
[373283220,1752927110919,-499.41849365,0.00025,30]
[373283221,1752927110929,-5145.3702461,0.00025,30]
[373283222,1752927111177,-365.67045574,0.00025,4]
[373283223,1752927111187,-239893.97,0.00025,7]
[373283224,1752927111197,-154.05722215,0.00025,2]
[373283225,1752927111206,-2110.0,0.00025,2]
[373283226,1752927111216,-160.0,0.00025,3]
[373283227,1752927111226,-151.0,0.00025,7]
[373283228,1752927111235,-151.0,0.00025,7]
[373283229,1752927111245,-151.0,0.00025,7]
[373283230,1752927111255,-151.0,0.00025,7]
[373283231,1752927111265,-208.178346,0.00025,7]
[373283232,1752927111274,-970.33,0.00025,2]
[373283233,1752927111284,-970.33,0.00025,2]
[373283234,1752927111293,-1144.4263,0.00025,2]
[373283235,1752927111305,-1144.4263,0.00025,2]
[373283236,1752927111315,-496.0,0.00025,7]
[373283237,1752927111325,-1896.035,0.00025,2]
[373283238,1752927111336,-1896.035,0.00025,2]
[373283239,1752927111345,-1879.8477123,0.0002501,30]
[373283240,1752927111356,-3728.16858639,0.0002501,2]
[373283241,1752927111366,-300.0,0.0002501,2]
[373283242,1752927111375,-1011.7,0.00025055,7]
[373283243,1752927111385,-1011.7,0.00025055,7]
[373283244,1752927111396,-300.0,0.00025095,10]
[373283245,1752927111405,-300.0,0.00025095,10]
[373283246,1752927111415,-3290.30681021,0.000251,2]
[373283247,1752927111425,-200.0,0.000251,7]
[373283248,1752927111435,-2008.0,0.00025143,2]
[373283249,1752927111445,-231.0,0.0002515,2]
[373283250,1752927111456,-496.0,0.00025205,7]
[373283251,1752927111466,-3635.0,0.00025206,2]
[373283252,1752927111476,-1089.0,0.00025206,2]
[373283253,1752927111488,-444.0,0.00025206,2]
[373283254,1752927111499,-500.0,0.00025206,2]
[373283255,1752927111508,-152.0,0.00025235,10]
[373283256,1752927111518,-300.0,0.00025267,10]
[373283257,1752927111528,-300.0,0.00025267,10]
[373283258,1752927111537,-62059.38303774,0.00025268,7]
[373283259,1752927111547,-479.10385899,0.00025279,2]
[373283260,1752927111557,-17753.0,0.00025298,2]
[373283261,1752927111567,-300.0,0.00025299,10]
[373283262,1752927111578,-846.58,0.000253,60]
[373283263,1752927111588,-4538.0,0.000253,14]
[373283264,1752927111599,-5463.33,0.000253,7]
[373283265,1752927111610,-280.0,0.000253,10]
[373283266,1752927111619,-1011.7,0.00025329,7]
[373283267,1752927111628,-1011.7,0.00025329,7]
[373283268,1752927111638,-300.0,0.00025369,10]
[373283269,1752927111647,-4609.0,0.00025369,2]
[373283270,1752927111656,-498.0,0.00025373,7]
[373283271,1752927111667,-2008.0,0.00025394,2]
[373283272,1752927111677,-600.0,0.00025433,2]
[373283273,1752927111687,-496.0,0.00025479,7]
[373283274,1752927111698,-3635.0,0.0002548,2]
[373283275,1752927111708,-1089.0,0.0002548,2]
[373283276,1752927111718,-444.0,0.0002548,2]
[373283277,1752927111727,-500.0,0.0002548,2]
[373283278,1752927111737,-500.0,0.00025484,5]
[373283279,1752927111746,-2110.0,0.000255,2]
[373283280,1752927111756,-900.0,0.00025548,2]
[373283281,1752927111765,-1000.0,0.00025548,2]
[373283282,1752927111775,-300.0,0.00025558,2]
[373283283,1752927111785,-205.86,0.00025592,2]
[373283284,1752927111795,-2098.52403,0.0002561,2]
[373283285,1752927111805,-300.0,0.00025643,10]
[373283286,1752927111817,-2008.0,0.00025645,2]
[373283287,1752927111828,-152.0,0.00025668,11]
[373283288,1752927111839,-2000.0,0.00025678,10]
[373283289,1752927111848,-385.5,0.00025708,15]
[373283290,1752927111859,-160.22,0.0002575,2]
[373283291,1752927111870,-496.0,0.00025753,7]
[373283292,1752927111880,-3635.0,0.00025753,2]
[373283293,1752927111895,-1089.0,0.00025753,2]
[373283294,1752927111905,-444.0,0.00025753,2]
[373283295,1752927111914,-500.0,0.00025754,2]
[373283296,1752927111924,-153.0,0.000258,60]
[373283297,1752927111934,-528.58075775,0.00025883,2]
[373283298,1752927111943,-496.0,0.0002589,7]
[373283299,1752927111953,-2008.0,0.00025897,2]
[373283300,1752927111963,-597.72025729,0.0002593,50]
[373283301,1752927111973,-239.84119403,0.00025977,2]
[373283302,1752927111982,-179.64524252,0.00025977,2]
[373283303,1752927111992,-161.84360495,0.00025977,2]
[373283304,1752927112003,-600.0,0.00025981,2]
[373283305,1752927112014,-584.20919988,0.0002599,2]
[373283306,1752927112024,-5000.0,0.00026,30]
[373283307,1752927112034,-162.0,0.00026,5]
[373283308,1752927112044,-900.0,0.00026,27]
[373283309,1752927112054,-4401.82033328,0.00026,2]
[373283310,1752927112064,-4433.65,0.00026,2]
[373283311,1752927112074,-1313.55928055,0.00026,2]
[373283312,1752927112084,-210.0,0.00026,2]
[373283313,1752927112093,-3000.0,0.00026,26]
[373283314,1752927112103,-174.38,0.00026,30]
[373283315,1752927112113,-580.83,0.00026,7]
[373283316,1752927112123,-160.25,0.00026,120]
[373283317,1752927112134,-2803.01,0.00026,7]
[373283318,1752927112143,-25000.0,0.00026,2]
[373283319,1752927112152,-261.27,0.00026,7]
[373283320,1752927112162,-2480.44,0.00026,7]
[373283321,1752927112172,-192.77,0.00026,7]
[373283322,1752927112182,-34335.35,0.00026,7]
[373283323,1752927112192,-744.02,0.00026,2]
[373283324,1752927112202,-476.80070012,0.00026,10]
[373283325,1752927112212,-476.80070012,0.00026,30]
[373283326,1752927112222,-210.82967408,0.00026,10]
[373283327,1752927112235,-210.82967408,0.00026,30]
[373283328,1752927112246,-839.16344753,0.00026,10]
[373283329,1752927112255,-839.16344753,0.00026,30]
[373283330,1752927112265,-4000.0,0.00026,4]
[373283331,1752927112275,-1618.6,0.00026027,2]
[373283332,1752927112286,-1618.6,0.00026027,2]
[373283333,1752927112296,-1618.6,0.00026027,2]
[373283334,1752927112306,-1618.6,0.00026027,2]
[373283335,1752927112316,-1618.6,0.00026027,2]
[373283336,1752927112326,-1618.6,0.00026027,2]
[373283337,1752927112336,-1618.6,0.00026027,2]
[373283338,1752927112346,-1618.6,0.00026027,2]
[373283339,1752927112355,-1618.6,0.00026027,2]
[373283340,1752927112365,-1618.6,0.00026027,2]
[373283341,1752927112374,-1618.6,0.00026027,2]
[373283342,1752927112384,-1618.6,0.00026027,2]
[373283343,1752927112394,-1618.6,0.00026027,2]
[373283344,1752927112403,-1618.6,0.00026027,2]
[373283345,1752927112413,-1618.6,0.00026027,2]
[373283346,1752927112423,-1618.6,0.00026027,2]
[373283347,1752927112433,-1618.6,0.00026027,2]
[373283348,1752927112443,-1618.6,0.00026027,2]
[373283349,1752927112453,-1618.6,0.00026027,2]
[373283350,1752927112470,-1618.6,0.00026027,2]
[373283351,1752927112484,-1618.6,0.00026027,2]
[373283352,1752927112497,-1618.6,0.00026027,2]